[Event "NJSK 2024 C"]
[Site "Groningen, Netherlands"]
[Date "2024.04.29"]
[Round "3.4"]
[White "Aravindhan, Achyuth"]
[Black "Roorda, Cas"]
[Result "1-0"]
[TimeControl "90min/40moves + 30min + 30sec/move"]
[WhiteElo "2071"]
[BlackElo "1828"]

1. e4 {[%clk 01:30:58]} {[%emt 00:00:02]} c5 {[%clk 01:30:52]} {[%emt
00:00:08]} 2. Nf3 {[%clk 01:31:21]} {[%emt 00:00:06]} e6 {[%clk 01:31:17]}
{[%emt 00:00:06]} 3. d4 {[%clk 01:31:48]} {[%emt 00:00:03]} cxd4 {[%clk
01:31:44]} {[%emt 00:00:03]} 4. Nxd4 {[%clk 01:32:14]} {[%emt 00:00:04]} Nc6
{[%clk 01:32:11]} {[%emt 00:00:03]} 5. Nc3 {[%clk 01:32:39]} {[%emt 00:00:05]}
Qc7 {[%emt 00:00:07]} 6. Be3 {[%clk 01:33:06]} a6 {[%clk 01:33:02]} {[%emt
00:00:06]} 7. g4 {[%clk 01:33:31]} {[%emt 00:00:04]} Nxd4 {[%clk 01:32:52]}
{[%emt 00:00:41]} 8. Qxd4 {[%clk 01:32:21]} {[%emt 00:01:39]} b5 {[%clk
01:33:11]} {[%emt 00:00:11]} 9. O-O-O {[%clk 01:21:56]} {[%emt 00:10:55]} Bb7
{[%clk 01:33:21]} {[%emt 00:00:20]} 10. Rd2 {[%clk 01:20:25]} {[%emt 00:02:00]}
Nf6 {[%clk 01:22:34]} {[%emt 00:11:17]} 11. f3 {[%clk 01:05:17]} {[%emt
00:15:38]} Rc8 {[%clk 01:19:36]} {[%emt 00:03:29]} 12. g5 {[%clk 01:02:27]}
{[%emt 00:03:20]} Nh5 {[%clk 01:18:40]} {[%emt 00:01:26]} 13. Qd3 {[%clk
01:02:42]} {[%emt 00:00:15]} Bb4 {[%clk 01:11:18]} {[%emt 00:07:52]} 14. Bh3
{[%clk 00:47:02]} {[%emt 00:16:10]} d5 {[%clk 00:56:50]} {[%emt 00:14:57]} 15.
exd5 {[%clk 00:43:55]} {[%emt 00:03:37]} Bxc3 {[%clk 00:57:00]} {[%emt
00:00:21]} 16. Qxc3 {[%clk 00:44:07]} {[%emt 00:00:17]} Qxc3 {[%clk 00:57:03]}
{[%emt 00:00:28]} 17. bxc3 {[%clk 00:44:29]} {[%emt 00:00:08]} Rxc3 {[%clk
00:40:56]} {[%emt 00:16:36]} 18. Bd4 {[%clk 00:41:02]} {[%emt 00:03:56]} Rxf3
{[%clk 00:39:51]} {[%emt 00:01:37]} 19. Bg4 {[%clk 00:39:48]} {[%emt 00:01:43]}
Bxd5 {[%clk 00:40:04]} {[%emt 00:00:17]} 20. Re1 {[%clk 00:30:24]} {[%emt
00:09:54]} Ra3 {[%clk 00:26:57]} {[%emt 00:13:38]} 21. Bxh5 {[%clk 00:21:43]}
{[%emt 00:09:10]} Rxa2 {[%clk 00:13:34]} {[%emt 00:13:53]} 22. Bxg7 {[%clk
00:20:25]} {[%emt 00:01:49]} Rg8 {[%clk 00:14:00]} {[%emt 00:00:04]} 23. Bf6
{[%clk 00:20:39]} {[%emt 00:00:15]} Rxg5 {[%clk 00:13:27]} {[%emt 00:01:03]} 24.
Bf3 {[%clk 00:19:04]} {[%emt 00:02:04]} Kd7 {[%clk 00:09:13]} {[%emt 00:04:46]}
25. Kb1 {[%clk 00:18:44]} {[%emt 00:00:49]} 1-0

[Event "NJSK 2024 C"]
[Site "Groningen, Netherlands"]
[Date "2024.04.29"]
[Round "3.5"]
[White "Ritzerveld, Noah"]
[Black "Leenen, Boyd"]
[Result "1-0"]
[TimeControl "90min/40moves + 30min + 30sec/move"]
[WhiteElo "2103"]
[BlackElo "1920"]

1. e4 {[%clk 01:30:55]} {[%emt 00:00:05]} e5 {[%clk 01:30:53]} {[%emt
00:00:07]} 2. Nf3 {[%clk 01:31:20]} {[%emt 00:00:05]} Nc6 {[%clk 01:31:16]}
{[%emt 00:00:07]} 3. Bc4 {[%clk 01:31:46]} {[%emt 00:00:05]} Bc5 {[%clk
01:31:40]} {[%emt 00:00:05]} 4. c3 {[%clk 01:32:04]} {[%emt 00:00:12]} Nf6
{[%clk 01:32:00]} {[%emt 00:00:08]} 5. d3 {[%clk 01:32:25]} {[%emt 00:00:10]}
d6 {[%clk 01:32:22]} {[%emt 00:00:08]} 6. O-O {[%clk 01:32:40]} {[%emt
00:00:16]} a5 {[%clk 01:32:42]} {[%emt 00:00:10]} 7. Re1 {[%clk 01:32:35]}
{[%emt 00:00:34]} Ba7 {[%clk 01:32:47]} {[%emt 00:00:25]} 8. Nbd2 {[%clk
01:32:26]} {[%emt 00:00:39]} O-O {[%clk 01:32:49]} {[%emt 00:00:28]} 9. Nf1
{[%clk 01:32:38]} {[%emt 00:00:19]} Ne7 {[%clk 01:33:05]} {[%emt 00:00:15]} 10.
Ng3 {[%clk 01:32:30]} {[%emt 00:00:37]} Ng6 {[%clk 01:33:21]} {[%emt 00:00:14]}
11. Bb3 {[%clk 01:29:30]} {[%emt 00:03:30]} c6 {[%clk 01:33:16]} {[%emt
00:00:34]} 12. d4 {[%clk 01:28:01]} {[%emt 00:01:59]} Re8 {[%clk 01:31:24]}
{[%emt 00:02:22]} 13. Be3 {[%clk 01:23:38]} {[%emt 00:04:53]} Bg4 {[%clk
01:11:55]} {[%emt 00:19:59]} 14. h3 {[%clk 01:21:43]} {[%emt 00:02:26]} Bxf3
{[%clk 01:12:06]} {[%emt 00:00:18]} 15. Qxf3 {[%clk 01:21:46]} {[%emt
00:00:27]} exd4 {[%clk 01:08:40]} {[%emt 00:03:58]} 16. Bxd4 {[%clk 01:21:00]}
{[%emt 00:01:15]} Bxd4 {[%clk 01:09:01]} {[%emt 00:00:10]} 17. cxd4 {[%clk
01:21:25]} {[%emt 00:00:04]} d5 {[%clk 01:08:22]} {[%emt 00:01:08]} 18. e5
{[%clk 01:17:32]} {[%emt 00:04:23]} Nd7 {[%clk 01:07:53]} {[%emt 00:01:00]} 19.
Qg4 {[%clk 01:17:00]} {[%emt 00:01:02]} Ndf8 {[%clk 01:03:51]} {[%emt
00:04:32]} 20. Nf5 {[%clk 01:14:43]} {[%emt 00:02:46]} Ne6 {[%clk 00:58:58]}
{[%emt 00:05:23]} 21. h4 {[%clk 01:08:52]} {[%emt 00:06:21]} Kh8 {[%clk
00:50:55]} {[%emt 00:08:34]} 22. h5 {[%clk 01:03:29]} {[%emt 00:05:53]} Ngf8
{[%clk 00:51:03]} {[%emt 00:00:21]} 23. Nd6 {[%clk 00:57:37]} {[%emt 00:06:22]}
Re7 {[%clk 00:51:09]} {[%emt 00:00:25]} 24. Rad1 {[%clk 00:56:05]} {[%emt
00:02:02]} Qb6 {[%clk 00:49:34]} {[%emt 00:02:05]} 25. h6 {[%clk 00:53:09]}
{[%emt 00:03:24]} g6 {[%clk 00:48:48]} {[%emt 00:01:18]} 26. Re2 {[%clk
00:51:42]} {[%emt 00:01:56]} Rd7 {[%clk 00:42:18]} {[%emt 00:07:01]} 27. Bc2
{[%clk 00:46:21]} {[%emt 00:05:51]} Qd8 {[%clk 00:36:59]} {[%emt 00:05:47]} 28.
f4 {[%clk 00:42:16]} {[%emt 00:04:36]} f5 {[%clk 00:27:20]} {[%emt 00:10:10]}
29. Qg3 {[%clk 00:41:28]} {[%emt 00:01:17]} Ra7 {[%clk 00:26:00]} {[%emt
00:01:51]} 30. Qf2 {[%clk 00:39:01]} {[%emt 00:02:57]} b6 {[%clk 00:23:19]}
{[%emt 00:03:11]} 31. g4 {[%clk 00:33:08]} {[%emt 00:06:23]} fxg4 {[%clk
00:22:39]} {[%emt 00:01:10]} 32. Qg3 {[%clk 00:29:01]} {[%emt 00:04:36]} Rxd6
{[%clk 00:21:02]} {[%emt 00:02:08]} 33. exd6 {[%clk 00:28:09]} {[%emt
00:01:22]} Qxd6 {[%clk 00:21:20]} {[%emt 00:00:12]} 34. Qxg4 {[%clk 00:24:23]}
{[%emt 00:04:15]} Qxf4 {[%clk 00:20:44]} {[%emt 00:01:06]} 35. Qxf4 {[%clk
00:23:32]} {[%emt 00:01:22]} Nxf4 {[%clk 00:21:09]} {[%emt 00:00:05]} 36. Re8
{[%clk 00:23:46]} {[%emt 00:00:14]} Rf7 {[%clk 00:20:33]} {[%emt 00:01:08]} 37.
Rde1 {[%clk 00:23:11]} {[%emt 00:01:05]} Kg8 {[%clk 00:20:46]} {[%emt
00:00:17]} 38. Bd1 {[%clk 00:21:34]} {[%emt 00:02:06]} Rf5 {[%clk 00:17:15]}
{[%emt 00:04:02]} 39. R1e7 {[%clk 00:19:14]} {[%emt 00:02:50]} Rf7 {[%clk
00:16:19]} {[%emt 00:01:26]} 40. Bg4 {[%clk 00:17:36]} {[%emt 00:02:07]} Rf6
{[%clk 00:15:33]} {[%emt 00:01:17]} 41. Rc8 {[%clk 00:16:03]} {[%emt 00:02:02]}
g5 {[%clk 00:15:36]} {[%emt 00:00:28]} 42. Rg7+ {[%clk 00:15:28]} {[%emt
00:01:04]} Kh8 {[%clk 00:16:01]} {[%emt 00:00:06]} 43. Rxg5 {[%clk 00:15:03]}
{[%emt 00:00:54]} N4g6 {[%clk 00:16:09]} {[%emt 00:00:22]} 44. Rf5 {[%clk
00:15:11]} {[%emt 00:00:22]} 1-0

[Event "NJSK 2024 C"]
[Site "Groningen, Netherlands"]
[Date "2024.04.29"]
[Round "3.6"]
[White "Haque, Nishaaz"]
[Black "Ambrona Navarro, Himar"]
[Result "0-1"]
[TimeControl "90min/40moves + 30min + 30sec/move"]
[WhiteElo "1803"]
[BlackElo "1963"]

1. e4 {[%clk 01:30:46]} {[%emt 00:00:13]} c5 {[%clk 01:30:37]} {[%emt
00:00:23]} 2. c3 {[%emt 00:00:23]} d5 {[%clk 01:30:58]} 3. exd5 {[%clk
01:31:26]} {[%emt 00:00:07]} Nf6 {[%clk 01:31:17]} {[%emt 00:00:11]} 4. d4
{[%clk 01:31:43]} {[%emt 00:00:14]} cxd4 {[%clk 01:31:39]} {[%emt 00:00:07]} 5.
Qxd4 {[%clk 01:30:58]} {[%emt 00:01:16]} Qxd5 {[%clk 01:31:52]} {[%emt
00:00:16]} 6. Qxd5 {[%clk 01:27:38]} {[%emt 00:03:51]} Nxd5 {[%clk 01:31:12]}
{[%emt 00:01:10]} 7. Bc4 {[%clk 01:27:53]} {[%emt 00:00:13]} Nb6 {[%clk
01:30:21]} {[%emt 00:01:22]} 8. Bb3 {[%clk 01:26:54]} {[%emt 00:01:29]} g6
{[%clk 01:30:11]} {[%emt 00:00:39]} 9. a4 {[%clk 01:26:44]} {[%emt 00:00:41]}
e6 {[%clk 01:26:17]} {[%emt 00:04:24]} 10. Bf4 {[%clk 01:20:14]} {[%emt
00:06:59]} Bg7 {[%clk 01:24:06]} {[%emt 00:02:39]} 11. Nf3 {[%clk 01:19:17]}
{[%emt 00:01:30]} Nc6 {[%clk 01:21:57]} {[%emt 00:02:39]} 12. O-O {[%clk
01:18:16]} {[%emt 00:01:31]} O-O {[%clk 01:18:58]} {[%emt 00:03:29]} 13. Rd1
{[%clk 01:16:56]} {[%emt 00:01:50]} Nd7 {[%clk 01:14:41]} {[%emt 00:04:45]} 14.
Nbd2 {[%clk 01:15:26]} {[%emt 00:02:01]} Nc5 {[%clk 01:10:04]} {[%emt
00:05:08]} 15. Bd6 {[%clk 01:11:08]} {[%emt 00:04:48]} Nxb3 {[%clk 01:09:48]}
{[%emt 00:00:48]} 16. Bxf8 {[%clk 01:10:49]} {[%emt 00:00:48]} Nxa1 {[%clk
01:09:25]} {[%emt 00:00:52]} 17. Bxg7 {[%clk 01:11:11]} {[%emt 00:00:08]} Kxg7
{[%clk 01:09:37]} {[%emt 00:00:19]} 18. Rxa1 {[%clk 01:11:18]} {[%emt
00:00:22]} e5 {[%clk 01:01:38]} {[%emt 00:08:29]} 19. Nc4 {[%clk 01:05:46]}
{[%emt 00:05:59]} f6 {[%clk 00:57:50]} {[%emt 00:04:19]} 20. Rd1 {[%clk
01:02:00]} {[%emt 00:04:18]} Bg4 {[%clk 00:56:19]} {[%emt 00:01:59]} 21. h3
{[%clk 00:58:32]} {[%emt 00:04:00]} Be6 {[%clk 00:54:32]} {[%emt 00:02:09]} 22.
Ne3 {[%clk 00:58:00]} {[%emt 00:01:11]} Rd8 {[%clk 00:53:00]} {[%emt 00:02:00]}
23. Rxd8 {[%clk 00:56:17]} {[%emt 00:02:14]} Nxd8 {[%clk 00:53:06]} {[%emt
00:00:24]} 24. Nd2 {[%clk 00:55:55]} {[%emt 00:00:52]} Kf7 {[%clk 00:52:11]}
{[%emt 00:01:25]} 25. Kf1 {[%clk 00:55:51]} {[%emt 00:00:34]} f5 {[%clk
00:51:50]} {[%emt 00:00:50]} 26. Ndc4 {[%clk 00:55:18]} {[%emt 00:01:05]} Bxc4+
{[%clk 00:51:04]} {[%emt 00:01:13]} 27. Nxc4 {[%clk 00:55:18]} {[%emt
00:00:31]} Ke6 {[%clk 00:51:19]} {[%emt 00:00:12]} 28. Ke2 {[%clk 00:54:55]}
{[%emt 00:00:57]} Nf7 {[%clk 00:48:05]} {[%emt 00:03:43]} 29. Kd3 {[%clk
00:43:54]} {[%emt 00:11:32]} Ng5 {[%clk 00:40:55]} {[%emt 00:07:38]} 30. Nd2
{[%clk 00:42:06]} {[%emt 00:02:21]} Kd5 {[%clk 00:39:51]} {[%emt 00:01:26]} 31.
b4 {[%clk 00:39:53]} {[%emt 00:02:49]} e4+ {[%clk 00:39:05]} {[%emt 00:01:16]}
32. Ke3 {[%clk 00:39:06]} {[%emt 00:01:18]} Ne6 {[%clk 00:39:20]} {[%emt
00:00:13]} 33. f4 {[%clk 00:38:10]} {[%emt 00:01:29]} a5 {[%clk 00:37:32]}
{[%emt 00:02:17]} 34. c4+ {[%clk 00:35:45]} {[%emt 00:02:56]} Kc6 {[%clk
00:37:17]} {[%emt 00:00:42]} 35. b5+ {[%clk 00:35:32]} {[%emt 00:00:45]} Kc5
{[%clk 00:37:35]} {[%emt 00:00:10]} 36. Nb3+ {[%clk 00:35:58]} {[%emt
00:00:06]} Kb4 {[%clk 00:37:44]} {[%emt 00:00:19]} 37. Nd4 {[%clk 00:34:56]}
{[%emt 00:01:35]} Nxd4 {[%clk 00:36:26]} {[%emt 00:01:47]} 38. Kxd4 {[%clk
00:34:55]} {[%emt 00:00:31]} Kxa4 {[%clk 00:36:36]} {[%emt 00:01:42]} 0-1

[Event "NJSK 2024 C"]
[Site "Groningen, Netherlands"]
[Date "2024.04.29"]
[Round "3.7"]
[White "Darie, Aden"]
[Black "Etienne, Ghilon"]
[Result "1-0"]
[TimeControl "90min/40moves + 30min + 30sec/move"]
[WhiteElo "1923"]
[BlackElo "1793"]

1. e4 {[%clk 01:28:45]} {[%emt 00:02:08]} e5 {[%clk 01:30:56]} {[%emt
00:00:11]} 2. Nf3 {[%clk 01:29:02]} {[%emt 00:00:13]} Nc6 {[%clk 01:31:21]}
{[%emt 00:00:05]} 3. Bb5 {[%clk 01:29:16]} {[%emt 00:00:16]} g6 {[%clk
01:31:43]} {[%emt 00:00:07]} 4. O-O {[%clk 01:29:05]} {[%emt 00:00:41]} Bg7
{[%clk 01:31:53]} {[%emt 00:00:21]} 5. c3 {[%clk 01:29:30]} {[%emt 00:00:06]}
Nge7 {[%clk 01:32:02]} {[%emt 00:00:20]} 6. d4 {[%clk 01:29:52]} {[%emt
00:00:08]} exd4 {[%clk 01:32:29]} {[%emt 00:00:04]} 7. cxd4 {[%clk 01:30:15]}
{[%emt 00:00:05]} a6 {[%clk 01:32:47]} {[%emt 00:00:13]} 8. Ba4 {[%clk
01:30:41]} {[%emt 00:00:05]} d5 {[%clk 01:32:51]} {[%emt 00:00:26]} 9. e5
{[%clk 01:26:56]} {[%emt 00:04:15]} O-O {[%clk 01:32:59]} {[%emt 00:00:21]} 10.
h3 {[%clk 01:25:51]} {[%emt 00:01:35]} h6 {[%clk 01:30:19]} {[%emt 00:03:11]}
11. Be3 {[%clk 01:18:56]} {[%emt 00:07:25]} Be6 {[%clk 01:22:16]} {[%emt
00:08:33]} 12. Nc3 {[%clk 01:17:37]} {[%emt 00:01:48]} Kh7 {[%clk 01:14:24]}
{[%emt 00:08:22]} 13. Nh2 {[%clk 01:15:20]} {[%emt 00:02:47]} Nf5 {[%clk
01:10:44]} {[%emt 00:04:11]} 14. Ng4 {[%clk 01:13:28]} {[%emt 00:02:22]} h5
{[%clk 01:05:45]} {[%emt 00:05:29]} 15. Nh2 {[%clk 01:13:44]} {[%emt 00:00:13]}
Nxe3 {[%clk 01:05:56]} {[%emt 00:00:19]} 16. fxe3 {[%clk 01:14:07]} {[%emt
00:00:06]} Qg5 {[%clk 00:55:21]} {[%emt 00:11:06]} 17. Qe2 {[%clk 01:10:05]}
{[%emt 00:04:31]} Ne7 {[%clk 00:50:44]} {[%emt 00:05:08]} 18. Nf3 {[%clk
01:09:38]} {[%emt 00:00:56]} Qg3 {[%clk 00:51:08]} {[%emt 00:00:06]} 19. Qf2
{[%clk 01:08:50]} {[%emt 00:01:19]} Qxf2+ {[%clk 00:50:44]} {[%emt 00:00:55]}
20. Kxf2 {[%clk 01:08:50]} {[%emt 00:00:29]} Bf5 {[%clk 00:41:56]} {[%emt
00:09:19]} 21. Rfe1 {[%clk 01:05:34]} {[%emt 00:03:45]} Rad8 {[%clk 00:32:45]}
{[%emt 00:09:41]} 22. Rac1 {[%clk 01:02:16]} {[%emt 00:03:48]} b6 {[%clk
00:28:50]} {[%emt 00:04:25]} 23. e4 {[%clk 00:58:53]} {[%emt 00:03:52]} dxe4
{[%clk 00:29:13]} {[%emt 00:00:08]} 24. Nxe4 {[%clk 00:59:13]} {[%emt
00:00:10]} Nd5 {[%clk 00:29:38]} {[%emt 00:00:05]} 25. Bb3 {[%clk 00:53:34]}
{[%emt 00:06:09]} Nf4 {[%clk 00:28:52]} {[%emt 00:01:16]} 26. Bc4 {[%clk
00:49:40]} {[%emt 00:04:24]} Bxe4 {[%clk 00:20:38]} {[%emt 00:08:44]} 27. Rxe4
{[%clk 00:49:13]} {[%emt 00:00:57]} Bh6 {[%clk 00:21:03]} {[%emt 00:00:06]} 28.
Rd1 {[%clk 00:47:44]} {[%emt 00:01:58]} a5 {[%clk 00:20:40]} {[%emt 00:00:54]}
29. d5 {[%clk 00:43:17]} {[%emt 00:04:56]} Rfe8 {[%clk 00:16:25]} {[%emt
00:04:44]} 30. Red4 {[%clk 00:41:34]} {[%emt 00:02:14]} Kg8 {[%clk 00:11:42]}
{[%emt 00:05:13]} 31. h4 {[%clk 00:37:58]} {[%emt 00:04:06]} f6 {[%clk
00:05:55]} {[%emt 00:06:16]} 32. d6+ {[%clk 00:37:43]} {[%emt 00:00:46]} Kg7
{[%clk 00:06:24]} {[%emt 00:00:02]} 33. dxc7 {[%clk 00:37:41]} {[%emt
00:00:32]} Rxd4 {[%clk 00:05:17]} {[%emt 00:01:37]} 34. Rxd4 {[%clk 00:37:55]}
{[%emt 00:00:15]} 1-0

[Event "NJSK 2024 C"]
[Site "Groningen, Netherlands"]
[Date "2024.04.29"]
[Round "3.8"]
[White "Koppenens, Oscar"]
[Black "Klein Tuente, Sam"]
[Result "1-0"]
[TimeControl "90min/40moves + 30min + 30sec/move"]
[WhiteElo "1893"]
[BlackElo "1732"]

1. e4 {[%clk 01:30:58]} {[%emt 00:00:02]} c5 {[%clk 01:30:55]} {[%emt
00:00:05]} 2. Nf3 {[%clk 01:31:23]} {[%emt 00:00:05]} e6 {[%clk 01:31:22]}
{[%emt 00:00:04]} 3. d4 {[%clk 01:31:48]} {[%emt 00:00:05]} cxd4 {[%clk
01:31:48]} {[%emt 00:00:05]} 4. Nxd4 {[%clk 01:32:14]} {[%emt 00:00:04]} Nc6
{[%clk 01:32:14]} {[%emt 00:00:03]} 5. Nc3 {[%clk 01:32:01]} {[%emt 00:00:42]}
Qc7 {[%clk 01:32:37]} {[%emt 00:00:07]} 6. Be3 {[%clk 01:30:29]} {[%emt
00:02:02]} a6 {[%clk 01:32:41]} {[%emt 00:00:26]} 7. Qd2 {[%clk 01:30:41]}
{[%emt 00:00:18]} Nf6 {[%clk 01:32:37]} {[%emt 00:00:35]} 8. Nxc6 {[%clk
01:29:35]} {[%emt 00:01:35]} bxc6 {[%clk 01:32:43]} {[%emt 00:00:24]} 9. h3
{[%clk 01:26:03]} {[%emt 00:04:03]} Bb4 {[%clk 01:28:20]} {[%emt 00:04:52]} 10.
Bd3 {[%clk 01:26:16]} {[%emt 00:00:17]} d5 {[%clk 01:27:44]} {[%emt 00:01:06]}
11. exd5 {[%clk 01:26:25]} {[%emt 00:00:21]} Nxd5 {[%clk 01:22:38]} {[%emt
00:05:36]} 12. O-O {[%clk 01:24:28]} {[%emt 00:02:28]} Bxc3 {[%clk 01:08:50]}
{[%emt 00:14:18]} 13. bxc3 {[%clk 01:23:27]} {[%emt 00:01:30]} O-O {[%clk
01:07:57]} {[%emt 00:01:23]} 14. Bc5 {[%clk 01:21:12]} {[%emt 00:02:46]} Re8
{[%clk 01:06:03]} {[%emt 00:02:24]} 15. Rfe1 {[%clk 01:19:56]} {[%emt
00:01:46]} e5 {[%clk 01:01:29]} {[%emt 00:05:04]} 16. c4 {[%clk 01:19:28]}
{[%emt 00:00:59]} Nf6 {[%clk 01:00:44]} {[%emt 00:01:14]} 17. Bd6 {[%clk
01:19:29]} {[%emt 00:00:30]} Qd8 {[%clk 00:59:54]} {[%emt 00:01:19]} 18. Rxe5
{[%clk 01:18:48]} {[%emt 00:01:11]} Rxe5 {[%clk 00:57:50]} 19. Bxe5 {[%clk
01:18:57]} {[%emt 00:02:56]} Be6 {[%clk 00:57:18]} {[%emt 00:01:01]} 20. Rd1
{[%clk 01:18:24]} {[%emt 00:01:02]} Nd7 {[%clk 00:56:28]} {[%emt 00:01:22]} 21.
Be4 {[%clk 01:17:43]} {[%emt 00:01:11]} Qc8 {[%clk 00:48:21]} {[%emt 00:08:36]}
22. Bc3 {[%clk 01:15:50]} {[%emt 00:02:23]} Rb8 {[%clk 00:43:35]} {[%emt
00:05:16]} 23. Qd4 {[%clk 01:14:36]} {[%emt 00:01:43]} f6 {[%clk 00:42:33]}
{[%emt 00:01:33]} 24. Qd6 {[%clk 01:14:42]} {[%emt 00:00:23]} Nb6 {[%clk
00:40:14]} {[%emt 00:02:50]} 25. Qg3 {[%clk 01:06:50]} {[%emt 00:08:21]} Kh8
{[%clk 00:35:34]} {[%emt 00:05:11]} 26. Rd6 {[%clk 01:01:52]} {[%emt 00:05:28]}
c5 {[%clk 00:24:45]} {[%emt 00:11:19]} 27. Rxe6 {[%emt 00:00:40]} 1-0

[Event "NJSK 2024 C"]
[Site "Groningen, Netherlands"]
[Date "2024.04.29"]
[Round "3.9"]
[White "Lalkota, Sai Pranav Tejas"]
[Black "Okita, Shinsaku"]
[Result "0-1"]
[TimeControl "90min/40moves + 30min + 30sec/move"]
[WhiteElo "1782"]
[BlackElo "1826"]

1. e4 {[%clk 01:30:40]} {[%emt 00:00:20]} c5 {[%clk 01:30:51]} {[%emt
00:00:10]} 2. Nc3 {[%clk 01:31:04]} {[%emt 00:00:06]} g6 {[%clk 01:31:10]}
{[%emt 00:00:11]} 3. g3 {[%clk 01:31:25]} {[%emt 00:00:08]} Bg7 {[%clk
01:31:22]} {[%emt 00:00:18]} 4. Bg2 {[%clk 01:31:53]} {[%emt 00:00:03]} Nc6
{[%clk 01:31:32]} {[%emt 00:00:20]} 5. Nge2 {[%clk 01:32:05]} {[%emt 00:00:17]}
e6 {[%clk 01:31:46]} {[%emt 00:00:17]} 6. O-O {[%clk 01:32:02]} {[%emt
00:00:32]} Nge7 {[%clk 01:31:43]} {[%emt 00:00:33]} 7. f4 {[%clk 01:31:47]}
{[%emt 00:00:45]} d6 {[%clk 01:30:56]} {[%emt 00:01:17]} 8. d3 {[%clk
01:31:47]} {[%emt 00:00:30]} h5 {[%clk 01:29:26]} {[%emt 00:02:01]} 9. h4
{[%clk 01:30:48]} {[%emt 00:01:29]} a6 {[%clk 01:29:07]} {[%emt 00:00:48]} 10.
a4 {[%clk 01:30:39]} {[%emt 00:00:40]} Qc7 {[%clk 01:23:49]} {[%emt 00:05:48]}
11. Be3 {[%clk 01:30:20]} {[%emt 00:00:48]} Bd7 {[%clk 01:23:43]} {[%emt
00:00:36]} 12. e5 {[%clk 01:25:27]} {[%emt 00:05:23]} Nf5 {[%clk 01:18:05]}
{[%emt 00:06:09]} 13. Bf2 {[%clk 01:22:39]} {[%emt 00:03:18]} dxe5 {[%clk
01:17:17]} {[%emt 00:01:18]} 14. Bxc5 {[%clk 01:22:57]} {[%emt 00:00:12]} Ncd4
{[%clk 01:17:27]} {[%emt 00:00:19]} 15. Ne4 {[%clk 01:18:30]} {[%emt 00:04:57]}
Bc6 {[%clk 01:08:43]} {[%emt 00:09:15]} 16. Kf2 {[%clk 01:10:55]} {[%emt
00:08:05]} Nxe2 {[%clk 01:08:54]} {[%emt 00:00:19]} 17. Kxe2 {[%clk 01:07:48]}
{[%emt 00:03:37]} Bxe4 {[%clk 01:09:03]} {[%emt 00:00:20]} 18. dxe4 {[%clk
01:08:10]} {[%emt 00:00:09]} Nxg3+ {[%clk 01:08:55]} {[%emt 00:00:38]} 19. Kf3
{[%clk 01:08:30]} {[%emt 00:00:09]} Nxf1 {[%clk 01:08:22]} {[%emt 00:01:03]} 20.
Bg1 {[%clk 01:08:56]} {[%emt 00:00:02]} Ng3 {[%clk 01:07:48]} {[%emt 00:01:05]}
21. Kxg3 {[%clk 01:09:00]} {[%emt 00:00:26]} exf4+ {[%clk 01:08:06]} {[%emt
00:00:13]} 22. Kf3 {[%clk 01:08:35]} {[%emt 00:00:54]} Bxb2 {[%clk 01:07:02]}
{[%emt 00:01:34]} 23. Rb1 {[%clk 01:08:07]} {[%emt 00:00:57]} O-O {[%clk
01:06:23]} {[%emt 00:01:09]} 24. Rxb2 {[%clk 01:03:23]} {[%emt 00:05:16]} Qc3+
{[%clk 01:06:14]} {[%emt 00:00:39]} 25. Kxf4 {[%clk 01:03:40]} {[%emt
00:00:12]} e5+ {[%clk 01:06:15]} {[%emt 00:00:29]} 26. Kg5 {[%clk 01:03:53]}
{[%emt 00:00:17]} Qg3+ {[%clk 01:06:38]} {[%emt 00:00:08]} 27. Kf6 {[%clk
01:03:56]} {[%emt 00:00:26]} Qf4+ {[%clk 01:07:02]} {[%emt 00:00:06]} 28. Ke7
{[%clk 01:04:14]} {[%emt 00:00:12]} Rfe8+ {[%clk 01:07:27]} {[%emt 00:00:06]}
29. Kd6 {[%clk 01:04:36]} {[%emt 00:00:07]} Rad8+ {[%clk 01:07:50]} {[%emt
00:00:08]} 30. Kc5 {[%clk 01:04:47]} {[%emt 00:00:19]} Rxd1 {[%clk 01:08:00]}
{[%emt 00:00:20]} 0-1